bitfinex/quotes_SOLUSD_20220116
["timestamp","ask_amount","ask_price","bid_price","bid_amount"]
[1642312767825,16.35,146.62,146.57,23.4184]
[1642312768227,16.1,146.62,146.57,23.4184]
[1642312769727,16.35,146.62,146.57,23.4184]
[1642312773959,16.35,146.62,146.55,22.9602]
[1642312774159,41.3373,146.62,146.55,52.5045]
[1642312774363,41.3373,146.62,146.55,29.5443]
[1642312776560,119.4715,146.62,146.55,29.5443]
[1642312777360,119.4715,146.62,146.55,23.5443]
[1642312777562,51.5715,146.62,146.55,23.5443]
[1642312781167,67.9,146.61,146.54,3.87819692]
[1642312781367,10.2367,146.59,146.54,3.87819692]
[1642312781570,9.84,146.58,146.54,3.87819692]
[1642312781769,10.1,146.58,146.54,3.87819692]
[1642312781968,16.35,146.58,146.54,3.87819692]
[1642312782168,16.35,146.58,146.54,41.95174301]
[1642312784574,10.35,146.58,146.54,41.95174301]
[1642312785174,32.65867337,146.58,146.54,41.95174301]
[1642312785375,10.35,146.58,146.54,41.95174301]
[1642312786080,10.35,146.58,146.54,3.87819692]
[1642312786474,10.09,146.58,146.54,3.87819692]
[1642312786975,0.25,146.58,146.54,3.87819692]
[1642312787177,0.25,146.58,146.55,36.38873734]
[1642312787480,55.03179933,146.62,146.55,36.38873734]
[1642312787678,9.84,146.61,146.55,36.38873734]
[1642312787878,16.35,146.61,146.55,36.38873734]
[1642312788080,16.35,146.61,146.54,3.87819692]
[1642312789083,16.35,146.61,146.54,47.06795775]
[1642312789485,16.35,146.61,146.54,46.99721725]
[1642312791910,16.1,146.61,146.54,46.99721725]
[1642312793311,16.35,146.61,146.54,46.99721725]
[1642312795213,16.09,146.61,146.54,46.99721725]
[1642312795416,6.25,146.61,146.54,47.24721725]
[1642312795814,0.25,146.61,146.54,47.24721725]
[1642312796014,6.25,146.61,146.54,47.24721725]
[1642312796614,0.26,146.6,146.54,47.24721725]
[1642312796814,0.26,146.61,146.54,47.24721725]
[1642312798116,34.7349,146.65,146.54,47.24721725]
[1642312798316,34.7349,146.65,146.55,23.1247]
[1642312798317,9.84,146.65,146.55,23.1247]
[1642312798518,9.84,146.69,146.55,23.1247]
[1642312798720,23.822,146.68,146.55,29.3747]
[1642312799118,25.38421657,146.67,146.55,29.1147]
[1642312799319,25.38421657,146.67,146.56,9.84]
[1642312799518,31.38421657,146.67,146.56,9.84]
[1642312799718,31.38421657,146.67,146.56,16.09]
[1642312799918,0.26,146.66,146.57,24.7101]
[1642312800118,7.461,146.66,146.57,24.7101]
[1642312800318,17.9426,146.66,146.57,24.7101]
[1642312800525,24.0165,146.65,146.57,24.7101]
[1642312800921,0.26,146.64,146.57,24.7101]
[1642312802618,10.1,146.64,146.54,3.80745642]
[1642312803021,16.35,146.64,146.54,3.80745642]
[1642312803424,16.35,146.64,146.54,45.04889021]
[1642312803719,16.1,146.64,146.54,45.04889021]
[1642312804321,16.1,146.64,146.54,3.80745642]
[1642312804524,26.333,146.64,146.54,3.80745642]
[1642312804924,26.583,146.64,146.54,3.80745642]
[1642312806328,68.23,146.63,146.54,3.80745642]
[1642312806534,10.2359,146.61,146.54,3.80745642]
[1642312806829,0.26,146.6,146.54,3.80745642]
[1642312807030,6.42198125,146.6,146.54,3.80745642]
[1642312807428,36.85338125,146.6,146.54,3.80745642]
[1642312808030,47.08908125,146.6,146.54,3.80745642]
[1642312808833,68.23,146.59,146.54,3.80745642]
[1642312809031,78.07,146.59,146.54,3.80745642]
[1642312809232,0.26,146.58,146.54,3.80745642]
[1642312809432,8.44557305,146.56,146.54,3.80745642]
[1642312809632,16.8911461,146.56,146.54,3.80745642]
[1642312809833,25.64421657,146.55,146.54,3.80745642]
[1642312810133,31.44851654,146.55,146.54,3.80745642]
[1642312810738,25.38421657,146.55,146.54,3.80745642]
[1642312811434,31.70851654,146.55,146.54,3.80745642]
[1642312812938,31.95851654,146.55,146.54,3.80745642]
[1642312814840,40.40408959,146.55,146.54,3.80745642]
[1642312815141,48.84966264,146.55,146.54,3.80745642]
[1642312815542,23.46544607,146.55,146.54,3.80745642]
[1642312816447,48.76325139,146.55,146.54,3.80745642]
[1642312820449,48.51325139,146.55,146.54,3.80745642]
[1642312822952,48.25325139,146.55,146.54,3.80745642]
[1642312823874,48.50325139,146.55,146.54,3.80745642]
[1642312824276,48.76325139,146.55,146.5,5.81729538]
[1642312824474,0.26,146.54,146.5,5.31729538]
[1642312824674,10.1,146.54,146.5,5.31729538]
[1642312824874,8.44557305,146.52,146.5,5.31729538]
[1642312825076,2.90314746,146.51,146.5,5.31729538]
[1642312825274,3.16314746,146.51,146.5,5.31729538]
[1642312825473,16.8911461,146.52,146.5,5.31729538]
[1642312826374,19.92334607,146.52,146.5,5.31729538]
[1642312826574,40.03761628,146.52,146.5,5.31729538]
[1642312827076,19.92334607,146.52,146.5,5.31729538]
[1642312828175,3.0321,146.51,146.5,5.31729538]
[1642312828375,3.5421,146.51,146.5,5.31729538]
[1642312828577,26.02019467,146.51,146.5,5.31729538]
[1642312830179,34.46576772,146.51,146.5,5.31729538]
[1642312830378,40.46576772,146.51,146.5,5.31729538]
[1642312830580,48.91134077,146.51,146.5,5.31729538]
[1642312831477,42.91134077,146.51,146.5,5.31729538]
[1642312832481,42.66134077,146.51,146.5,5.31729538]
[1642312833981,42.91134077,146.51,146.5,5.31729538]
[1642312834879,20.4332461,146.51,146.5,5.31729538]
[1642312835080,17.4011461,146.51,146.5,5.31729538]
[1642312836284,17.1411461,146.51,146.5,5.31729538]
[1642312838384,17.4011461,146.51,146.5,5.31729538]
[1642312838797,23.46544607,146.51,146.5,5.31729538]
[1642312839390,19.92334607,146.51,146.5,5.31729538]
[1642312839592,16.8911461,146.51,146.5,5.31729538]
[1642312843592,4.61e-05,146.51,146.5,5.31729538]
[1642312843896,6.0,146.63,146.5,13.1314797]
[1642312844095,6.0,146.63,146.5,16.9714797]
[1642312844292,29.1399,146.64,146.5,22.9714797]
[1642312844492,29.1399,146.64,146.51,24.1026]
[1642312844693,24.39183817,146.63,146.52,41.50462428]
[1642312844894,30.39183817,146.63,146.53,24.2169]
[1642312845292,30.64183817,146.63,146.53,24.2169]
[1642312845492,24.6259,146.62,146.53,24.2169]
[1642312845696,24.6259,146.62,146.53,24.4669]
[1642312845895,30.6259,146.62,146.53,30.4669]
[1642312846095,6.0,146.62,146.53,24.4669]
[1642312846692,9.84,146.66,146.53,24.4669]
[1642312846894,6.0,146.66,146.54,10.1]
[1642312847096,46.4727,146.67,146.54,16.1]
[1642312847293,46.4727,146.67,146.55,24.9714]
[1642312847494,46.4727,146.67,146.55,34.8114]
[1642312847693,27.66394397,146.66,146.56,49.78928258]
[1642312847894,0.26,146.65,146.56,50.03928258]
[1642312849697,0.26,146.65,146.56,49.78928258]
[1642312849925,0.26,146.65,146.56,50.03928258]
[1642312850099,0.26,146.65,146.56,0.25]
[1642312850300,0.26,146.65,146.55,34.8114]
[1642312850498,0.26,146.65,146.55,40.8114]
[1642312850702,0.26,146.65,146.55,34.8114]
[1642312851298,0.26,146.65,146.56,44.05500821]
[1642312851998,0.26,146.65,146.56,44.30500821]
[1642312852297,0.26,146.65,146.56,44.05500821]
[1642312853297,33.66394397,146.66,146.56,45.35919253]
[1642312853499,27.66394397,146.66,146.56,45.60919253]
[1642312853700,27.91394397,146.66,146.56,45.60919253]
[1642312853898,27.91394397,146.66,146.56,44.05500821]
[1642312854103,27.91394397,146.66,146.55,34.8114]
[1642312854299,33.91394397,146.66,146.55,34.8114]
[1642312854499,27.91394397,146.66,146.55,34.8114]
[1642312854702,33.91394397,146.66,146.55,35.0614]
[1642312855102,33.91394397,146.66,146.56,48.10630259]
[1642312855300,0.26,146.65,146.56,48.10630259]
[1642312855701,0.26,146.65,146.56,48.35630259]
[1642312856502,27.91394397,146.66,146.56,54.35630259]
[1642312857809,0.26,146.65,146.56,54.35630259]
[1642312859413,46.4727,146.67,146.56,54.35630259]
[1642312859611,9.84,146.72,146.57,9.84]
[1642312859809,33.6463,146.72,146.58,23.9563]
[1642312860012,39.6463,146.72,146.58,25.25356091]
[1642312860209,39.6463,146.72,146.59,0.26]
[1642312860411,27.82074508,146.71,146.6,38.50921608]
[1642312860814,0.26,146.7,146.6,44.75921608]
[1642312861017,0.26,146.7,146.6,67.40701608]
[1642312862613,34.07074508,146.71,146.6,67.40701608]
[1642312862813,28.07074508,146.71,146.61,0.26]
[1642312864017,28.07074508,146.71,146.6,77.24701608]
[1642312865351,28.07074508,146.71,146.61,0.26]
[1642312865746,28.07074508,146.71,146.6,77.24701608]
[1642312865945,0.26,146.7,146.6,77.24701608]
[1642312869449,56.88204508,146.71,146.6,77.24701608]
[1642312870751,0.26,146.7,146.6,77.24701608]
[1642312872962,56.63204508,146.71,146.6,77.24701608]
[1642312873952,56.88204508,146.71,146.6,77.24701608]
[1642312874355,0.26,146.7,146.6,77.24701608]
[1642312876154,56.63204508,146.71,146.6,77.24701608]
[1642312876956,56.88204508,146.71,146.6,77.24701608]
[1642312878856,0.26,146.7,146.6,77.24701608]
[1642312881657,56.63204508,146.71,146.6,77.24701608]
[1642312881858,13.57777616,146.74,146.61,0.26]
[1642312882063,3.73777616,146.74,146.62,9.84]
[1642312882258,9.73777616,146.74,146.63,24.5964]
[1642312882457,3.73777616,146.74,146.63,33.0004]
[1642312882661,9.73777616,146.74,146.63,33.0004]
[1642312883062,26.44866399,146.73,146.64,39.46703737]
[1642312883261,26.18866399,146.73,146.64,39.46703737]
[1642312883459,32.18866399,146.73,146.64,39.71703737]
[1642312884362,0.26,146.72,146.64,39.71703737]
[1642312884860,32.18866399,146.73,146.63,32.4904]
[1642312885063,32.18866399,146.73,146.63,24.5964]
[1642312885361,32.43866399,146.73,146.63,24.5964]
[1642312885964,32.43866399,146.73,146.64,45.88533076]
[1642312886461,0.26,146.72,146.64,46.13533076]
[1642312886665,0.26,146.72,146.64,52.13533076]
[1642312887265,0.26,146.73,146.64,52.13533076]
[1642312887464,20.39017647,146.73,146.64,52.13533076]
[1642312887664,26.39017647,146.73,146.64,46.13533076]
[1642312887864,26.64017647,146.73,146.64,46.13533076]
[1642312888067,26.64017647,146.73,146.64,45.88533076]
[1642312889969,26.64017647,146.73,146.64,46.13533076]
[1642312890572,26.64017647,146.73,146.64,52.63333076]
[1642312891497,26.38017647,146.73,146.64,52.63333076]
[1642312891697,26.38017647,146.73,146.64,46.13533076]
[1642312892899,0.26,146.72,146.64,46.13533076]
[1642312893298,26.38017647,146.73,146.64,46.13533076]
[1642312895302,0.26,146.72,146.64,46.13533076]
[1642312895903,0.26,146.72,146.64,52.13533076]
[1642312897105,3.73777616,146.74,146.65,0.26]
[1642312897403,3.73777616,146.74,146.66,9.84]
[1642312897805,3.73777616,146.74,146.67,0.26]
[1642312898003,25.42352789,146.74,146.67,51.78885285]
[1642312898206,25.42352789,146.74,146.67,58.03885285]
[1642312898405,25.42352789,146.74,146.67,57.77885285]
[1642312898805,0.26,146.73,146.67,57.77885285]
[1642312899006,0.26,146.73,146.67,57.52885285]
[1642312899206,0.26,146.73,146.67,51.77885285]
[1642312899606,3.73777616,146.74,146.67,51.77885285]
[1642312900408,3.73777616,146.74,146.68,0.26]
[1642312900610,3.73777616,146.74,146.68,7.129]
[1642312901010,3.73777616,146.74,146.68,13.379]
[1642312903019,3.73777616,146.74,146.68,6.51]
[1642312904615,3.73777616,146.74,146.68,0.51]
[1642312904816,3.73777616,146.74,146.68,6.51]
[1642312906020,3.73777616,146.74,146.68,0.51]
[1642312906215,3.73777616,146.74,146.68,0.26]
[1642312906516,3.73777616,146.74,146.67,57.77885285]
[1642312907015,0.26,146.73,146.67,57.77885285]
[1642312907915,0.26,146.73,146.68,0.26]
[1642312908115,0.26,146.73,146.68,10.1]
[1642312908318,3.73777616,146.74,146.68,10.1]
[1642312908521,3.73777616,146.74,146.68,16.35]
[1642312908716,0.26,146.73,146.68,16.35]
[1642312910917,0.26,146.73,146.68,17.64280396]
[1642312911122,3.73777616,146.74,146.68,17.64280396]
[1642312912019,3.73777616,146.74,146.68,16.35]
[1642312912221,0.26,146.73,146.68,16.35]
[1642312912422,0.26,146.73,146.7,0.02193719]
[1642312914521,3.03219997,146.72,146.7,0.02193719]
[1642312915523,3.03219997,146.72,146.7,1.31474115]
[1642312915725,3.73777616,146.74,146.71,41.77032786]
[1642312915924,3.73777616,146.74,146.71,42.02032786]
[1642312917452,3.73777616,146.74,146.72,0.02348398]
[1642312917825,6.06429997,146.73,146.72,0.02348398]
[1642312921929,3.73777616,146.74,146.72,0.02348398]
[1642312922428,3.73777616,146.74,146.71,42.02032786]
[1642312923129,0.26,146.73,146.71,42.02032786]
[1642312926032,3.29219997,146.73,146.71,42.02032786]
[1642312926241,3.0321,146.72,146.71,42.02032786]
[1642312926435,3.0321,146.72,146.71,0.25]
[1642312926834,3.0321,146.72,146.7,1.54280396]
[1642312927237,3.29219997,146.73,146.7,1.54280396]
[1642312927737,3.29219997,146.73,146.71,50.37821015]
[1642312927935,0.26,146.73,146.71,50.62821015]
[1642312928536,3.73777616,146.74,146.71,50.62821015]
[1642312928940,3.73777616,146.74,146.71,56.62821015]
[1642312932661,3.73777616,146.74,146.71,66.46821015]
[1642312932860,3.73777616,146.74,146.72,1.28932569]
[1642312933063,3.73777616,146.74,146.71,66.46821015]
[1642312942874,3.73777616,146.74,146.71,16.09]
[1642312943173,3.73777616,146.74,146.71,10.09]
[1642312943374,0.26,146.73,146.71,9.84]
[1642312943774,3.73777616,146.74,146.71,9.84]
[1642312944674,3.73777616,146.74,146.72,46.18857519]
[1642312944877,3.73777616,146.74,146.72,46.43857519]
[1642312948579,3.73777616,146.74,146.72,46.18857519]
[1642312948980,3.03219997,146.73,146.72,46.18857519]
[1642312949182,3.03219997,146.73,146.71,9.84]
[1642312950194,3.03219997,146.73,146.72,35.96935223]
[1642312950388,3.03219997,146.73,146.72,36.21935223]
[1642312950891,3.73777616,146.74,146.72,36.21935223]
[1642312952090,3.73777616,146.74,146.72,0.25]
[1642312952386,6.76997613,146.74,146.71,16.09]
[1642312952686,3.0321,146.73,146.71,16.09]
[1642312953286,6.76997613,146.74,146.72,41.00814286]
[1642312953686,6.76997613,146.74,146.72,47.25814286]
[1642312953888,3.73777616,146.74,146.72,47.25814286]
[1642312954388,3.73777616,146.74,146.72,41.25814286]
[1642312955389,3.73777616,146.74,146.72,47.25814286]
[1642312956090,3.73777616,146.74,146.72,41.25814286]
[1642312957893,3.73777616,146.74,146.72,47.25814286]
[1642312958291,3.73777616,146.74,146.72,41.25814286]
[1642312961219,3.73777616,146.74,146.73,0.26]
[1642312961419,1.94342493,146.76,146.73,0.26]
[1642312961619,32.45748917,146.77,146.73,0.26]
[1642312961818,32.45748917,146.77,146.73,1.55075407]
[1642312962022,7.55008917,146.77,146.73,7.80075407]
[1642312962519,5.60666424,146.77,146.73,7.80075407]
[1642312964520,5.60666424,146.77,146.74,9.84]
[1642312964921,5.60666424,146.77,146.75,0.26]
[1642312965826,5.60666424,146.77,146.75,37.34904897]
[1642312966222,5.60666424,146.77,146.75,43.59904897]
[1642312966623,23.0954,146.82,146.75,43.59904897]
[1642312967827,0.26,146.81,146.76,9.84]
[1642312968225,0.26,146.81,146.76,16.09]
[1642312971832,23.0954,146.82,146.77,0.26]
[1642312974135,6.18,146.95,146.81,0.31765127]
[1642312974337,9.6701584,146.98,146.96,13.98329706]
[1642312974537,9.26401999,146.99,146.97,9.84]
[1642312974734,15.54739944,147.02,146.97,9.84]
[1642312974936,15.54739944,147.02,146.97,16.09]
[1642312975136,21.99208011,147.04,146.98,90.38601756]
[1642312975335,21.99208011,147.04,147.02,122.97]
[1642312975336,20.74038011,147.04,147.02,122.97]
[1642312975539,121.8253,147.13,147.03,132.81]
[1642312975738,23.9163,147.13,147.04,122.97]
[1642312975936,74.51884223,147.14,147.05,9.84]
[1642312976140,48.05259786,147.13,147.06,25.35436886]
[1642312976335,48.05259786,147.13,147.07,9.84]
[1642312976838,74.51884223,147.14,147.07,15.84]
[1642312977136,74.51884223,147.14,147.08,10.0]
[1642312977337,74.51884223,147.14,147.09,9.84]
[1642312977547,74.51884223,147.14,147.1,122.97]
[1642312977743,22.3184301,147.14,147.12,21.89601756]
[1642312977939,22.3184301,147.14,147.13,9.84]
[1642312978541,11.9256301,147.14,147.13,9.84]
[1642312978942,11.9256301,147.14,147.13,143.06]
[1642312979143,72.3361,147.25,147.13,156.685]
[1642312979344,40.45170787,147.3,147.14,156.41128549]
[1642312979644,40.45170787,147.3,147.15,9.84]
[1642312979943,129.69947845,147.3,147.15,2.67]
[1642312980143,139.65631544,147.3,147.15,2.67]
[1642312980945,0.26,147.28,147.15,37.8413111]
[1642312981144,78.4224,147.26,147.15,37.8413111]
[1642312981343,78.6724,147.26,147.15,2.67]
[1642312981743,78.6724,147.26,147.15,9.84]
[1642312981744,84.6724,147.26,147.15,9.84]
[1642312982241,42.24250024,147.25,147.15,9.84]
[1642312982444,78.4236,147.24,147.15,9.84]
[1642312982842,84.6736,147.24,147.15,9.84]
[1642312983443,16.4436,147.24,147.12,9.84]
[1642312985346,16.4436,147.24,147.12,15.30472588]
[1642312985748,16.4436,147.24,147.12,9.84]
[1642312988250,1.70077588,147.23,147.12,9.84]
[1642312988449,7.95077588,147.23,147.12,9.84]
[1642312988648,7.70077588,147.23,147.12,9.84]
[1642312988850,6.0,147.23,147.12,9.84]
[1642312989048,41.17293593,147.22,147.12,9.84]
[1642312989451,47.17293593,147.22,147.12,9.84]
[1642312989851,47.42293593,147.22,147.12,9.84]
[1642312993764,47.42293593,147.22,147.13,8.64123353]
[1642312996759,47.42293593,147.22,147.12,9.84]
[1642312997358,47.42293593,147.22,147.12,10.09]
[1642312997758,47.42293593,147.22,147.13,30.5964818]
[1642312997960,47.42293593,147.22,147.14,9.84]
[1642312998359,47.42293593,147.22,147.14,10.09]
[1642313002791,47.42293593,147.22,147.14,9.84]
[1642313004203,6.0,147.22,147.14,9.84]
[1642313004396,38.14099645,147.21,147.15,28.4833788]
[1642313004595,42.00525436,147.21,147.15,38.3233788]
[1642313004796,48.00525436,147.21,147.15,38.3233788]
[1642313005496,44.14099645,147.21,147.15,38.3233788]
[1642313005897,44.39099645,147.21,147.15,38.3233788]
[1642313006098,6.25,147.21,147.15,38.3233788]
[1642313006297,6.0,147.26,147.15,38.5733788]
[1642313006498,6.0,147.21,147.15,38.5733788]
[1642313006698,6.0,147.26,147.15,38.5733788]
[1642313006896,6.0,147.26,147.15,44.5733788]
[1642313007197,45.8943437,147.27,147.15,44.5733788]
[1642313007398,51.8943437,147.27,147.15,44.5733788]
[1642313007598,51.8943437,147.27,147.15,44.3233788]
[1642313007797,120.1243437,147.27,147.15,44.3233788]
[1642313008798,72.09398132,147.26,147.15,44.3233788]
[1642313009001,3.86398132,147.26,147.15,44.3233788]
[1642313009199,10.11398132,147.26,147.15,44.5733788]
[1642313009800,3.86398132,147.25,147.15,44.5733788]
[1642313009998,39.98089998,147.24,147.15,44.5733788]
[1642313010399,46.23089998,147.24,147.15,44.5733788]
[1642313011005,46.23089998,147.24,147.15,38.5733788]
[1642313011201,46.23089998,147.24,147.15,44.5733788]
[1642313012401,6.0,147.24,147.15,44.5733788]
[1642313012802,55.6105,147.28,147.15,44.5733788]
[1642313013001,123.8405,147.28,147.15,44.5733788]
[1642313013201,37.31431123,147.27,147.15,44.3233788]
[1642313013403,43.31431123,147.27,147.15,44.3233788]
[1642313013800,43.56431123,147.27,147.15,38.5733788]
[1642313014306,47.42524635,147.27,147.15,38.5733788]
[1642313015902,43.56431123,147.27,147.15,38.5733788]
[1642313016303,49.6105,147.28,147.15,38.5733788]
[1642313016603,93.44440397,147.32,147.16,122.97]
[1642313016808,93.44440397,147.32,147.17,9.84]
[1642313017205,93.44440397,147.32,147.18,6.84137752]
[1642313017403,40.7505727,147.31,147.19,9.84]
[1642313017802,44.85896435,147.31,147.19,16.09]
[1642313018606,3.85839165,147.3,147.19,16.09]
[1642313019006,10.10839165,147.3,147.19,16.09]
[1642313019807,9.85839165,147.3,147.19,16.09]
[1642313020208,6.0,147.3,147.19,16.09]
[1642313020410,46.7505727,147.31,147.19,16.09]
[1642313021109,47.0005727,147.31,147.19,16.09]
[1642313024116,46.7505727,147.31,147.19,16.09]
[1642313027318,47.0005727,147.31,147.19,16.09]
[1642313028222,93.44440397,147.32,147.26,0.31998102]
[1642313028416,92.94440397,147.32,147.27,9.84]
[1642313028617,89.64740397,147.32,147.27,11.11405753]
[1642313028816,89.64740397,147.32,147.27,17.36405753]
[1642313029017,89.64740397,147.32,147.27,16.09]
[1642313029217,21.79490397,147.32,147.28,28.4833788]
[1642313029416,21.79490397,147.32,147.29,9.84]
[1642313029816,21.79490397,147.32,147.29,16.09]
[1642313031416,21.79490397,147.32,147.29,9.84]
[1642313031618,6.06429997,147.31,147.29,9.84]
[1642313031816,6.31429997,147.31,147.29,9.84]
[1642313032017,6.06429997,147.31,147.29,9.84]
[1642313034719,6.06429997,147.31,147.29,10.09]
[1642313034918,21.79490397,147.32,147.29,10.09]
[1642313036827,21.79490397,147.32,147.29,9.84]
[1642313037323,21.79490397,147.32,147.29,10.09]
[1642313037921,21.79490397,147.32,147.29,9.84]
[1642313039122,21.79490397,147.32,147.29,10.09]
[1642313039423,48.3159,147.42,147.29,10.39597193]
[1642313039625,112.17066252,147.43,147.3,122.97]
[1642313039822,42.68228977,147.42,147.31,11.77349129]
[1642313040229,112.17066252,147.43,147.31,18.02349129]
[1642313040830,112.42066252,147.43,147.31,18.02349129]
[1642313041255,46.89929785,147.42,147.31,18.02349129]
[1642313041427,53.14929785,147.42,147.31,18.02349129]
[1642313041827,0.26,147.41,147.31,18.02349129]
[1642313042029,0.26,147.41,147.31,17.77349129]
[1642313043228,0.26,147.41,147.31,18.02349129]
[1642313044728,53.14929785,147.42,147.31,18.02349129]
[1642313045333,52.89929785,147.42,147.31,18.02349129]
[1642313045730,53.14929785,147.42,147.31,18.02349129]
[1642313046331,52.89929785,147.42,147.31,18.02349129]
[1642313046530,53.14929785,147.42,147.31,18.02349129]
[1642313047133,6.0,147.42,147.31,18.02349129]
[1642313047331,112.17066252,147.43,147.32,191.46]
[1642313047531,112.17066252,147.43,147.33,9.84]
[1642313047733,112.17066252,147.43,147.34,122.97]
[1642313047933,112.17066252,147.43,147.35,9.84]
[1642313048330,112.17066252,147.43,147.36,22.72359383]
[1642313048532,112.17066252,147.43,147.37,9.84]
[1642313048772,0.26,147.42,147.37,9.84]
[1642313049069,0.26,147.42,147.37,10.09]
[1642313052981,112.42066252,147.43,147.37,10.09]
[1642313053174,112.17066252,147.43,147.37,10.09]
[1642313053474,112.42066252,147.43,147.37,9.84]
[1642313054475,0.26,147.42,147.37,9.84]
[1642313054873,0.26,147.42,147.37,10.09]
[1642313055274,112.42066252,147.43,147.37,37.31740683]
[1642313055474,112.42066252,147.43,147.37,9.84]
[1642313055876,112.42066252,147.43,147.37,10.09]
[1642313056276,112.42066252,147.43,147.37,9.84]
[1642313056978,0.26,147.42,147.37,10.09]
[1642313057179,0.26,147.42,147.37,16.09]
[1642313057377,0.26,147.42,147.37,10.09]
[1642313060783,0.26,147.42,147.37,9.84]
[1642313061183,112.39797993,147.43,147.37,9.84]
[1642313061383,0.26,147.42,147.37,9.84]
[1642313065488,0.26,147.42,147.34,535.82027446]
[1642313065683,0.26,147.42,147.34,541.82027446]
[1642313066786,4.11770826,147.42,147.34,541.82027446]
[1642313066985,39.20437333,147.41,147.34,541.82027446]
[1642313067388,0.26,147.4,147.34,541.82027446]
[1642313067790,0.26,147.4,147.34,535.82027446]
[1642313069589,3.86457524,147.39,147.34,535.82027446]
[1642313069991,0.26,147.38,147.34,535.82027446]
[1642313070793,41.96065158,147.38,147.34,535.82027446]
[1642313071497,42.21065158,147.38,147.34,535.82027446]
[1642313076220,48.21065158,147.38,147.34,535.82027446]
[1642313076521,42.21065158,147.38,147.34,535.82027446]
[1642313077420,42.21065158,147.38,147.29,9.84]
[1642313077620,42.21065158,147.38,147.29,10.09]
[1642313078031,110.44065158,147.38,147.29,10.09]
[1642313079025,41.70065158,147.38,147.29,10.09]
[1642313079222,41.70065158,147.38,147.31,6.22870385]
[1642313079421,47.70065158,147.38,147.31,16.31870385]
[1642313080323,0.26,147.37,147.31,16.31870385]
[1642313080725,47.70065158,147.38,147.31,16.31870385]
[1642313081329,47.95065158,147.38,147.31,16.31870385]
[1642313082227,0.26,147.37,147.31,16.31870385]
[1642313083129,0.26,147.37,147.31,22.31870385]
[1642313084129,0.26,147.37,147.31,16.31870385]
[1642313090936,0.26,147.37,147.31,10.09]
[1642313092137,0.26,147.37,147.31,9.84]
[1642313093638,0.26,147.37,147.31,10.09]
[1642313094039,0.26,147.37,147.31,9.84]
[1642313094442,2.19297797,147.37,147.31,9.84]
[1642313094839,2.44297797,147.37,147.31,9.84]
[1642313095443,1.93297797,147.36,147.31,9.84]
[1642313095642,46.89847295,147.35,147.31,9.84]
[1642313095943,47.15847295,147.35,147.31,9.84]
[1642313098548,49.09145092,147.35,147.31,9.84]
[1642313102082,49.09145092,147.35,147.28,9.84]
[1642313102378,49.09145092,147.35,147.28,10.09]
[1642313102578,49.09145092,147.35,147.29,31.29607572]
[1642313102979,49.09145092,147.35,147.29,31.54607572]
[1642313106683,49.09145092,147.35,147.29,0.25]
[1642313106883,49.09145092,147.35,147.28,10.09]
[1642313107685,49.09145092,147.35,147.29,23.88673724]
[1642313107886,47.15847295,147.35,147.29,24.13673724]
[1642313108087,47.15847295,147.35,147.29,0.25]
[1642313109087,47.15847295,147.35,147.29,30.78459551]
[1642313109287,47.15847295,147.35,147.29,31.03459551]
[1642313110090,49.09145092,147.35,147.29,31.03459551]
[1642313112892,49.09145092,147.35,147.3,9.84]
[1642313113293,49.09145092,147.35,147.3,10.09]
[1642313115397,48.83145092,147.35,147.3,10.09]
[1642313116896,0.26,147.34,147.3,10.09]
[1642313118396,48.83145092,147.35,147.3,10.09]
[1642313119898,0.26,147.34,147.3,10.09]
[1642313130323,0.26,147.34,147.26,20.2277]
[1642313130521,1.96077588,147.34,147.26,10.3877]
[1642313130726,8.79577588,147.34,147.25,350.41197579]
[1642313130932,86.0,147.33,147.21,3.04956631]
[1642313131124,39.74649844,147.32,147.21,0.01746631]
[1642313131325,47.95727432,147.32,147.21,0.01746631]
[1642313131521,5.35854483,147.29,147.21,0.01746631]
[1642313131721,10.89354483,147.29,147.14,14.45391131]
[1642313131922,10.1,147.28,147.14,14.45391131]